[Event "Titled Tuesday Blitz February 14 Late 2023"]
[White "Marcolino, Daniel Mattos"]
[Black "De Souza, Cristiano Gomes"]
[WhiteFideId "2106841"]
[BlackFideId "2151758"]
[WhiteElo "2006"]
[BlackElo "2018"]
[Result "0-1"]
[Round "08"]
[TimeControl "180+2"]
[Date "2023.02.14"]
[WhiteClock "0:00:02"]
[BlackClock "0:00:09"]

1. d4 {[%clk 0:03:00]}  Nf6 {[%clk 0:02:58]} 2. Nf3 {[%clk 0:03:01]}  g6 {[%clk 0:02:59]} 3. g3 {[%clk 0:03:01]}  Bg7 {[%clk 0:02:59]} 4. Bg2 {[%clk 0:03:02]}  O-O {[%clk 0:02:59]} 5. O-O {[%clk 0:03:02]}  d6 {[%clk 0:03:00]} 6. b3 {[%clk 0:03:02]}  Nc6 {[%clk 0:02:59]} 7. Bb2 {[%clk 0:03:02]}  Bf5 {[%clk 0:02:59]} 8. c4 {[%clk 0:02:54]}  Qd7 {[%clk 0:02:57]} 9. Nbd2 {[%clk 0:02:51]}  Bh3 {[%clk 0:02:56]} 10. e4 {[%clk 0:02:50]}  Bxg2 {[%clk 0:02:55]} 11. Kxg2 {[%clk 0:02:51]}  a5 {[%clk 0:02:49]} 12. Re1 {[%clk 0:02:46]}  Nb4 {[%clk 0:02:46]} 13. Nf1 {[%clk 0:02:33]}  h5 {[%clk 0:02:34]} 14. a3 {[%clk 0:02:33]}  Na6 {[%clk 0:02:33]} 15. h3 {[%clk 0:02:12]}  c5 {[%clk 0:02:25]} 16. d5 {[%clk 0:02:05]}  Nc7 {[%clk 0:02:18]} 17. Qc2 {[%clk 0:01:59]}  e5 {[%clk 0:02:04]} 18. dxe6 {[%clk 0:01:51]}  Nxe6 {[%clk 0:02:04]} 19. Ne3 {[%clk 0:01:43]}  b5 {[%clk 0:01:56]} 20. Nd5 {[%clk 0:01:42]}  Nxd5 {[%clk 0:01:52]} 21. exd5 {[%clk 0:01:37]}  Nc7 {[%clk 0:01:38]} 22. Bxg7 {[%clk 0:01:36]}  Kxg7 {[%clk 0:01:37]} 23. Ng5 {[%clk 0:01:19]}  Rae8 {[%clk 0:01:32]} 24. Ne4 {[%clk 0:01:14]}  f6 {[%clk 0:00:40]} 25. Qc3 {[%clk 0:01:03]}  b4 {[%clk 0:00:33]} 26. axb4 {[%clk 0:01:00]}  axb4 {[%clk 0:00:33]} 27. Qb2 {[%clk 0:00:54]}  Rf7 {[%clk 0:00:25]} 28. Ng5 {[%clk 0:00:33]}  Rfe7 {[%clk 0:00:20]} 29. Rxe7+ {[%clk 0:00:32]}  Rxe7 {[%clk 0:00:20]} 30. Ra7 {[%clk 0:00:31]}  Qe8 {[%clk 0:00:19]} 31. Nf3 {[%clk 0:00:19]}  Kf7 {[%clk 0:00:13]} 32. Qc1 {[%clk 0:00:18]}  Kg7 {[%clk 0:00:12]} 33. Qa1 {[%clk 0:00:17]}  Kf7 {[%clk 0:00:12]} 34. Qc1 {[%clk 0:00:17]}  Qd8 {[%clk 0:00:12]} 35. Qh6 {[%clk 0:00:15]}  Ne8 {[%clk 0:00:12]} 36. Rxe7+ {[%clk 0:00:12]}  Qxe7 {[%clk 0:00:11]} 37. Qh7+ {[%clk 0:00:12]}  Ng7 {[%clk 0:00:12]} 38. Qh8 {[%clk 0:00:12]}  Qe4 {[%clk 0:00:11]} 39. Qc8 {[%clk 0:00:09]}  Nf5 {[%clk 0:00:11]} 40. Qd7+ {[%clk 0:00:08]}  Kg8 {[%clk 0:00:10]} 41. Qc8+ {[%clk 0:00:08]}  Kg7 {[%clk 0:00:10]} 42. Qd7+ {[%clk 0:00:07]}  Kh6 {[%clk 0:00:10]} 43. Qd8 {[%clk 0:00:05]}  Kh7 {[%clk 0:00:08]} 44. Qxf6 {[%clk 0:00:05]}  Nd4 {[%clk 0:00:08]} 45. Qf7+ {[%clk 0:00:05]}  Kh6 {[%clk 0:00:08]} 46. Qf4+ {[%clk 0:00:05]}  Qxf4 {[%clk 0:00:08]} 47. gxf4 {[%clk 0:00:06]}  Nxb3 {[%clk 0:00:09]} 48. Nh4 {[%clk 0:00:04]}  Na5 {[%clk 0:00:08]} 49. f5 {[%clk 0:00:03]}  g5 {[%clk 0:00:08]} 50. Nf3 {[%clk 0:00:02]}  Nxc4 {[%clk 0:00:09]} 0-1


[Site "https://www.chess.com"]

[Event "Titled Tuesday Blitz February 14 Late 2023"]
[White "Davalos Prieto, Abel Justo"]
[Black "Mushini Ajay"]
[WhiteFideId "5102766"]
[BlackFideId "35066188"]
[WhiteElo "2029"]
[BlackElo "2310"]
[Result "0-1"]
[Round "08"]
[TimeControl "180+2"]
[Date "2023.02.14"]
[WhiteClock "0:00:05"]
[BlackClock "0:00:29"]

1. c4 {[%clk 0:03:00]}  e6 {[%clk 0:02:58]} 2. Nc3 {[%clk 0:02:58]}  Nf6 {[%clk 0:02:57]} 3. e4 {[%clk 0:02:55]}  d5 {[%clk 0:02:57]} 4. e5 {[%clk 0:02:54]}  d4 {[%clk 0:02:57]} 5. exf6 {[%clk 0:02:52]}  dxc3 {[%clk 0:02:57]} 6. bxc3 {[%clk 0:02:52]}  Qxf6 {[%clk 0:02:56]} 7. d4 {[%clk 0:02:53]}  c5 {[%clk 0:02:55]} 8. Nf3 {[%clk 0:02:51]}  h6 {[%clk 0:02:51]} 9. Bd3 {[%clk 0:02:46]}  Nc6 {[%clk 0:02:49]} 10. O-O {[%clk 0:02:37]}  cxd4 {[%clk 0:02:41]} 11. cxd4 {[%clk 0:02:24]}  Nxd4 {[%clk 0:02:41]} 12. Nxd4 {[%clk 0:02:17]}  Qxd4 {[%clk 0:02:42]} 13. Be3 {[%clk 0:02:15]}  Qf6 {[%clk 0:02:40]} 14. c5 {[%clk 0:02:10]}  Bd7 {[%clk 0:02:37]} 15. Be4 {[%clk 0:02:09]}  Bc6 {[%clk 0:01:27]} 16. Bxc6+ {[%clk 0:02:02]}  bxc6 {[%clk 0:01:28]} 17. Qa4 {[%clk 0:01:45]}  e5 {[%clk 0:01:28]} 18. f4 {[%clk 0:01:29]}  Be7 {[%clk 0:01:26]} 19. fxe5 {[%clk 0:01:28]}  Qe6 {[%clk 0:01:25]} 20. Bd4 {[%clk 0:01:00]}  O-O {[%clk 0:01:23]} 21. Rab1 {[%clk 0:00:57]}  Qd5 {[%clk 0:01:09]} 22. Qb4 {[%clk 0:00:39]}  Qxa2 {[%clk 0:01:02]} 23. Rb3 {[%clk 0:00:36]}  a5 {[%clk 0:00:56]} 24. Qb7 {[%clk 0:00:32]}  a4 {[%clk 0:00:51]} 25. Rb4 {[%clk 0:00:21]}  Qe6 {[%clk 0:00:39]} 26. Rb6 {[%clk 0:00:17]}  Qd5 {[%clk 0:00:34]} 27. Bf2 {[%clk 0:00:13]}  Bxc5 {[%clk 0:00:33]} 28. Rxc6 {[%clk 0:00:10]}  Bxf2+ {[%clk 0:00:31]} 29. Rxf2 {[%clk 0:00:10]}  a3 {[%clk 0:00:31]} 30. Rb6 {[%clk 0:00:05]}  Qxb7 {[%clk 0:00:29]} 31. Rxb7 {[%clk 0:00:05]}  a2 {[%clk 0:00:29]} 0-1


[Site "https://www.chess.com"]

[Event "Titled Tuesday Blitz February 14 Late 2023"]
[White "Andreikin, Dmitry"]
[Black "Bortnyk, Olexandr"]
[WhiteFideId "4158814"]
[BlackFideId "14120828"]
[WhiteElo "2729"]
[BlackElo "2605"]
[Result "0-1"]
[Round "09"]
[TimeControl "180+2"]
[Date "2023.02.14"]
[WhiteClock "0:00:34"]
[BlackClock "0:00:39"]

1. c4 {[%clk 0:03:00]}  d6 {[%clk 0:02:52]} 2. Nc3 {[%clk 0:03:00]}  e5 {[%clk 0:02:51]} 3. g3 {[%clk 0:03:00]}  g6 {[%clk 0:02:51]} 4. Bg2 {[%clk 0:03:00]}  Bg7 {[%clk 0:02:51]} 5. e4 {[%clk 0:03:00]}  Nc6 {[%clk 0:02:47]} 6. Nge2 {[%clk 0:02:59]}  Nge7 {[%clk 0:02:41]} 7. d3 {[%clk 0:03:00]}  a5 {[%clk 0:02:17]} 8. O-O {[%clk 0:02:58]}  O-O {[%clk 0:02:15]} 9. Nd5 {[%clk 0:02:52]}  f5 {[%clk 0:02:08]} 10. Be3 {[%clk 0:02:46]}  Be6 {[%clk 0:01:57]} 11. Qd2 {[%clk 0:02:45]}  Qd7 {[%clk 0:01:52]} 12. Bg5 {[%clk 0:02:42]}  Rf7 {[%clk 0:01:48]} 13. Nec3 {[%clk 0:02:38]}  Raf8 {[%clk 0:01:38]} 14. Nb5 {[%clk 0:02:21]}  f4 {[%clk 0:01:29]} 15. Nbxc7 {[%clk 0:02:16]}  f3 {[%clk 0:01:18]} 16. Bh1 {[%clk 0:02:13]}  Bxd5 {[%clk 0:01:15]} 17. Nxd5 {[%clk 0:01:57]}  Nxd5 {[%clk 0:01:15]} 18. exd5 {[%clk 0:01:57]}  Nd4 {[%clk 0:01:16]} 19. Rae1 {[%clk 0:01:56]}  Qh3 {[%clk 0:01:14]} 20. Be3 {[%clk 0:01:51]}  Rf5 {[%clk 0:01:12]} 21. Bg5 {[%clk 0:01:43]}  Ne2+ {[%clk 0:01:10]} 22. Rxe2 {[%clk 0:01:40]}  fxe2 {[%clk 0:01:11]} 23. Qxe2 {[%clk 0:01:35]}  Rxg5 {[%clk 0:01:10]} 24. Bg2 {[%clk 0:01:35]}  Qg4 {[%clk 0:01:06]} 25. Qe3 {[%clk 0:01:36]}  Rgf5 {[%clk 0:00:57]} 26. Be4 {[%clk 0:01:29]}  R5f7 {[%clk 0:00:53]} 27. Qb6 {[%clk 0:01:29]}  Qe2 {[%clk 0:00:51]} 28. Bg2 {[%clk 0:01:03]}  Bh6 {[%clk 0:00:46]} 29. Bh3 {[%clk 0:00:50]}  Rxf2 {[%clk 0:00:43]} 30. Rxf2 {[%clk 0:00:34]}  Be3 {[%clk 0:00:41]} 31. Be6+ {[%clk 0:00:34]}  Kh8 {[%clk 0:00:39]} 0-1


[Site "https://www.chess.com"]

[Event "Titled Tuesday Blitz February 14 Late 2023"]
[White "Terry, Renato"]
[Black "Bluebaum, Matthias"]
[WhiteFideId "3803457"]
[BlackFideId "24651516"]
[WhiteElo "2520"]
[BlackElo "2669"]
[Result "1/2-1/2"]
[Round "09"]
[TimeControl "180+2"]
[Date "2023.02.14"]
[WhiteClock "0:00:03"]
[BlackClock "0:00:05"]

1. Nf3 {[%clk 0:03:00]}  d5 {[%clk 0:03:00]} 2. e3 {[%clk 0:03:00]}  c5 {[%clk 0:03:00]} 3. b3 {[%clk 0:02:59]}  a6 {[%clk 0:03:00]} 4. Bb2 {[%clk 0:02:59]}  Nc6 {[%clk 0:03:01]} 5. d4 {[%clk 0:02:57]}  cxd4 {[%clk 0:03:01]} 6. Nxd4 {[%clk 0:02:58]}  Nf6 {[%clk 0:03:00]} 7. Be2 {[%clk 0:02:53]}  e6 {[%clk 0:02:58]} 8. O-O {[%clk 0:02:53]}  Bd6 {[%clk 0:02:56]} 9. c4 {[%clk 0:02:52]}  e5 {[%clk 0:02:51]} 10. Nxc6 {[%clk 0:02:30]}  bxc6 {[%clk 0:02:52]} 11. Bf3 {[%clk 0:02:31]}  Be6 {[%clk 0:02:31]} 12. cxd5 {[%clk 0:02:27]}  cxd5 {[%clk 0:02:31]} 13. Nc3 {[%clk 0:02:27]}  Be7 {[%clk 0:02:19]} 14. Na4 {[%clk 0:02:22]}  Bd6 {[%clk 0:02:09]} 15. Nc3 {[%clk 0:02:07]}  e4 {[%clk 0:02:07]} 16. Be2 {[%clk 0:02:07]}  h5 {[%clk 0:02:06]} 17. h3 {[%clk 0:02:02]}  Rh6 {[%clk 0:02:04]} 18. f4 {[%clk 0:01:51]}  exf3 {[%clk 0:01:01]} 19. Bxf3 {[%clk 0:01:52]}  Bc7 {[%clk 0:00:38]} 20. Ba3 {[%clk 0:00:48]}  Bb8 {[%clk 0:00:20]} 21. Ne2 {[%clk 0:00:45]}  Ng4 {[%clk 0:00:20]} 22. Qc1 {[%clk 0:00:32]}  Ba7 {[%clk 0:00:16]} 23. Nd4 {[%clk 0:00:20]}  Rc8 {[%clk 0:00:16]} 24. Qd2 {[%clk 0:00:20]}  Qg5 {[%clk 0:00:14]} 25. Rae1 {[%clk 0:00:06]}  Qe5 {[%clk 0:00:14]} 26. g3 {[%clk 0:00:04]}  Qxg3+ {[%clk 0:00:14]} 27. Qg2 {[%clk 0:00:05]}  Qxg2+ {[%clk 0:00:15]} 28. Kxg2 {[%clk 0:00:05]}  Ne5 {[%clk 0:00:15]} 29. Be2 {[%clk 0:00:03]}  Rg6+ {[%clk 0:00:16]} 30. Kh2 {[%clk 0:00:03]}  Bb8 {[%clk 0:00:16]} 31. Kh1 {[%clk 0:00:02]}  Rg3 {[%clk 0:00:16]} 32. Bxa6 {[%clk 0:00:01]}  Rc3 {[%clk 0:00:11]} 33. Bb5+ {[%clk 0:00:02]}  Kd8 {[%clk 0:00:11]} 34. Bb4 {[%clk 0:00:03]}  Rxh3+ {[%clk 0:00:10]} 35. Kg2 {[%clk 0:00:03]}  Rcxe3 {[%clk 0:00:10]} 36. Nxe6+ {[%clk 0:00:03]}  fxe6 {[%clk 0:00:11]} 37. Rxe3 {[%clk 0:00:03]}  Rxe3 {[%clk 0:00:12]} 38. Rf8+ {[%clk 0:00:03]}  Kc7 {[%clk 0:00:12]} 39. Ba5+ {[%clk 0:00:03]}  Kb7 {[%clk 0:00:13]} 40. Rg8 {[%clk 0:00:03]}  Re4 {[%clk 0:00:04]} 41. Rxg7+ {[%clk 0:00:04]}  Ka8 {[%clk 0:00:04]} 42. Re7 {[%clk 0:00:04]}  Rg4+ {[%clk 0:00:03]} 43. Kf1 {[%clk 0:00:04]}  Rg6 {[%clk 0:00:02]} 44. Re8 {[%clk 0:00:04]}  Rf6+ {[%clk 0:00:03]} 45. Ke2 {[%clk 0:00:04]}  Kb7 {[%clk 0:00:03]} 46. Re7+ {[%clk 0:00:04]}  Ka8 {[%clk 0:00:04]} 47. Re8 {[%clk 0:00:04]}  Kb7 {[%clk 0:00:04]} 48. Re7+ {[%clk 0:00:04]}  Ka8 {[%clk 0:00:05]} 49. Re8 {[%clk 0:00:03]} 1/2-1/2


[Site "https://www.chess.com"]

[Event "Titled Tuesday Blitz February 14 Late 2023"]
[White "Hakobyan, Aram"]
[Black "Nakamura, Hikaru"]
[WhiteFideId "13306677"]
[BlackFideId "2016192"]
[WhiteElo "2608"]
[BlackElo "2775"]
[Result "0-1"]
[Round "09"]
[TimeControl "180+2"]
[Date "2023.02.14"]
[WhiteClock "0:00:01"]
[BlackClock "0:00:17"]

1. e4 {[%clk 0:03:00]}  c5 {[%clk 0:02:59]} 2. Nf3 {[%clk 0:03:01]}  e6 {[%clk 0:02:59]} 3. d4 {[%clk 0:03:01]}  cxd4 {[%clk 0:03:00]} 4. Nxd4 {[%clk 0:03:02]}  a6 {[%clk 0:03:01]} 5. Bd3 {[%clk 0:02:54]}  Nf6 {[%clk 0:02:56]} 6. O-O {[%clk 0:02:54]}  Qc7 {[%clk 0:02:57]} 7. Qe2 {[%clk 0:02:53]}  d6 {[%clk 0:02:50]} 8. c4 {[%clk 0:02:49]}  g6 {[%clk 0:02:47]} 9. Nc3 {[%clk 0:02:46]}  Bg7 {[%clk 0:02:47]} 10. Be3 {[%clk 0:02:44]}  Nc6 {[%clk 0:02:32]} 11. Rac1 {[%clk 0:02:40]}  O-O {[%clk 0:02:27]} 12. Nxc6 {[%clk 0:02:29]}  bxc6 {[%clk 0:02:26]} 13. f4 {[%clk 0:02:30]}  c5 {[%clk 0:02:23]} 14. Kh1 {[%clk 0:01:39]}  Bb7 {[%clk 0:02:22]} 15. Rce1 {[%clk 0:01:33]}  Rae8 {[%clk 0:01:58]} 16. Bf2 {[%clk 0:01:32]}  Nd7 {[%clk 0:01:58]} 17. Bh4 {[%clk 0:01:32]}  f5 {[%clk 0:01:52]} 18. Qd2 {[%clk 0:01:27]}  Nb8 {[%clk 0:01:46]} 19. Bc2 {[%clk 0:01:15]}  Kh8 {[%clk 0:01:21]} 20. Rd1 {[%clk 0:00:59]}  Bd4 {[%clk 0:01:15]} 21. Ne2 {[%clk 0:00:56]}  Nc6 {[%clk 0:01:12]} 22. Ba4 {[%clk 0:00:54]}  e5 {[%clk 0:01:12]} 23. fxe5 {[%clk 0:00:50]}  Bxe5 {[%clk 0:01:05]} 24. Nc3 {[%clk 0:00:34]}  Qg7 {[%clk 0:00:50]} 25. exf5 {[%clk 0:00:34]}  Rxf5 {[%clk 0:00:43]} 26. Rxf5 {[%clk 0:00:32]}  gxf5 {[%clk 0:00:43]} 27. Nd5 {[%clk 0:00:32]}  Rf8 {[%clk 0:00:43]} 28. Re1 {[%clk 0:00:32]}  Nd4 {[%clk 0:00:42]} 29. Be7 {[%clk 0:00:03]}  Rf7 {[%clk 0:00:36]} 30. Bg5 {[%clk 0:00:04]}  Bxd5 {[%clk 0:00:32]} 31. cxd5 {[%clk 0:00:05]}  f4 {[%clk 0:00:33]} 32. Bh4 {[%clk 0:00:02]}  f3 {[%clk 0:00:29]} 33. Rf1 {[%clk 0:00:01]}  Qg4 {[%clk 0:00:21]} 34. Be1 {[%clk 0:00:01]}  Ne2 {[%clk 0:00:17]} 0-1


[Site "https://www.chess.com"]

[Event "Titled Tuesday Blitz February 14 Late 2023"]
[White "Deac, Bogdan-Daniel"]
[Black "Yu, Yangyi"]
[WhiteFideId "1226380"]
[BlackFideId "8603820"]
[WhiteElo "2700"]
[BlackElo "2729"]
[Result "1/2-1/2"]
[Round "09"]
[TimeControl "180+2"]
[Date "2023.02.14"]
[WhiteClock "0:00:02"]
[BlackClock "0:00:04"]

1. c4 {[%clk 0:03:00]}  e6 {[%clk 0:02:59]} 2. g3 {[%clk 0:03:00]}  d5 {[%clk 0:02:59]} 3. Bg2 {[%clk 0:03:01]}  Nf6 {[%clk 0:03:00]} 4. Nf3 {[%clk 0:03:01]}  Be7 {[%clk 0:03:00]} 5. O-O {[%clk 0:03:01]}  O-O {[%clk 0:03:00]} 6. d3 {[%clk 0:02:59]}  b6 {[%clk 0:02:54]} 7. cxd5 {[%clk 0:02:58]}  exd5 {[%clk 0:02:53]} 8. d4 {[%clk 0:02:58]}  Bb7 {[%clk 0:02:49]} 9. b3 {[%clk 0:02:58]}  Nbd7 {[%clk 0:02:48]} 10. Bb2 {[%clk 0:02:58]}  Re8 {[%clk 0:02:47]} 11. Nc3 {[%clk 0:02:57]}  a6 {[%clk 0:02:45]} 12. Rc1 {[%clk 0:02:56]}  Bd6 {[%clk 0:02:45]} 13. e3 {[%clk 0:02:56]}  Qe7 {[%clk 0:02:45]} 14. Ne2 {[%clk 0:02:56]}  Ne4 {[%clk 0:02:40]} 15. Nf4 {[%clk 0:02:56]}  a5 {[%clk 0:02:37]} 16. Qc2 {[%clk 0:02:53]}  Rac8 {[%clk 0:02:27]} 17. Rfd1 {[%clk 0:02:43]}  c6 {[%clk 0:02:26]} 18. h4 {[%clk 0:02:39]}  h6 {[%clk 0:02:26]} 19. Bh3 {[%clk 0:02:30]}  Rc7 {[%clk 0:02:23]} 20. Qe2 {[%clk 0:02:20]}  Qd8 {[%clk 0:01:54]} 21. Qd3 {[%clk 0:01:47]}  Bc8 {[%clk 0:01:50]} 22. Bg2 {[%clk 0:01:31]}  Qe7 {[%clk 0:01:29]} 23. Rc2 {[%clk 0:00:45]}  Bb7 {[%clk 0:01:24]} 24. Rdc1 {[%clk 0:00:41]}  Rec8 {[%clk 0:01:22]} 25. Bh3 {[%clk 0:00:39]}  c5 {[%clk 0:01:12]} 26. dxc5 {[%clk 0:00:15]}  Bxc5 {[%clk 0:00:49]} 27. Nxd5 {[%clk 0:00:11]}  Bxd5 {[%clk 0:00:48]} 28. Qxd5 {[%clk 0:00:12]}  Nxf2 {[%clk 0:00:48]} 29. Rxf2 {[%clk 0:00:04]}  Bxe3 {[%clk 0:00:48]} 30. Rf1 {[%clk 0:00:03]}  Rd8 {[%clk 0:00:43]} 31. Kg2 {[%clk 0:00:03]}  Bxf2 {[%clk 0:00:38]} 32. Rxf2 {[%clk 0:00:03]}  Nc5 {[%clk 0:00:35]} 33. Qe5 {[%clk 0:00:03]}  Qxe5 {[%clk 0:00:35]} 34. Bxe5 {[%clk 0:00:04]}  Re7 {[%clk 0:00:36]} 35. Bd4 {[%clk 0:00:03]}  Rd5 {[%clk 0:00:28]} 36. Bxc5 {[%clk 0:00:03]}  Rxc5 {[%clk 0:00:26]} 37. Rd2 {[%clk 0:00:03]}  g6 {[%clk 0:00:25]} 38. Kf2 {[%clk 0:00:03]}  Kg7 {[%clk 0:00:25]} 39. Bf1 {[%clk 0:00:03]}  Rec7 {[%clk 0:00:20]} 40. a4 {[%clk 0:00:03]}  Rf5 {[%clk 0:00:17]} 41. Bc4 {[%clk 0:00:03]}  Re7 {[%clk 0:00:15]} 42. Kg2 {[%clk 0:00:02]}  Re3 {[%clk 0:00:15]} 43. Nd4 {[%clk 0:00:03]}  Rf6 {[%clk 0:00:15]} 44. Rf2 {[%clk 0:00:02]}  Rxf2+ {[%clk 0:00:14]} 45. Kxf2 {[%clk 0:00:03]}  Re5 {[%clk 0:00:10]} 46. Nb5 {[%clk 0:00:04]}  f5 {[%clk 0:00:10]} 47. Nd6 {[%clk 0:00:04]}  Rc5 {[%clk 0:00:08]} 48. Ke3 {[%clk 0:00:03]}  g5 {[%clk 0:00:08]} 49. hxg5 {[%clk 0:00:03]}  hxg5 {[%clk 0:00:09]} 50. Kd4 {[%clk 0:00:04]}  Kf6 {[%clk 0:00:09]} 51. Bd3 {[%clk 0:00:04]}  f4 {[%clk 0:00:09]} 52. Ne4+ {[%clk 0:00:04]}  Ke6 {[%clk 0:00:07]} 53. gxf4 {[%clk 0:00:04]}  Rc1 {[%clk 0:00:03]} 54. fxg5 {[%clk 0:00:04]}  Kf5 {[%clk 0:00:03]} 55. Bc4 {[%clk 0:00:02]}  Rd1+ {[%clk 0:00:02]} 56. Bd3 {[%clk 0:00:03]}  Rc1 {[%clk 0:00:03]} 57. Nd6+ {[%clk 0:00:03]}  Kxg5 {[%clk 0:00:03]} 58. Nc4 {[%clk 0:00:04]}  Kf6 {[%clk 0:00:02]} 59. Nxb6 {[%clk 0:00:04]}  Rh1 {[%clk 0:00:01]} 60. Bb5 {[%clk 0:00:03]}  Rh4+ {[%clk 0:00:01]} 61. Kc3 {[%clk 0:00:03]}  Rh3+ {[%clk 0:00:01]} 62. Kb2 {[%clk 0:00:03]}  Ke5 {[%clk 0:00:01]} 63. Nc4+ {[%clk 0:00:04]}  Kd4 {[%clk 0:00:02]} 64. Nxa5 {[%clk 0:00:04]}  Rh2+ {[%clk 0:00:03]} 65. Ka3 {[%clk 0:00:04]}  Kc3 {[%clk 0:00:04]} 66. Bc4 {[%clk 0:00:02]}  Rh1 {[%clk 0:00:04]} 67. b4 {[%clk 0:00:02]}  Ra1+ {[%clk 0:00:01]} 68. Ba2 {[%clk 0:00:02]}  Rxa2+ {[%clk 0:00:02]} 69. Kxa2 {[%clk 0:00:02]}  Kxb4 {[%clk 0:00:03]} 70. Nc6+ {[%clk 0:00:02]}  Kxa4 {[%clk 0:00:04]} 1/2-1/2


[Site "https://www.chess.com"]

[Event "Titled Tuesday Blitz February 14 Late 2023"]
[White "Yoo, Christopher Woojin"]
[Black "Avinash, Ramesh"]
[WhiteFideId "30909694"]
[BlackFideId "45018340"]
[WhiteElo "2607"]
[BlackElo "2319"]
[Result "1-0"]
[Round "09"]
[TimeControl "180+2"]
[Date "2023.02.14"]
[WhiteClock "0:00:02"]
[BlackClock "0:00:30"]

1. Nf3 {[%clk 0:03:00]}  Nf6 {[%clk 0:02:59]} 2. c4 {[%clk 0:02:59]}  g6 {[%clk 0:02:59]} 3. Nc3 {[%clk 0:02:58]}  Bg7 {[%clk 0:02:58]} 4. e4 {[%clk 0:02:54]}  O-O {[%clk 0:02:58]} 5. d4 {[%clk 0:02:51]}  d6 {[%clk 0:02:59]} 6. Be2 {[%clk 0:02:35]}  e5 {[%clk 0:02:56]} 7. O-O {[%clk 0:02:24]}  exd4 {[%clk 0:02:56]} 8. Nxd4 {[%clk 0:02:23]}  Nc6 {[%clk 0:02:57]} 9. Be3 {[%clk 0:01:54]}  Re8 {[%clk 0:02:56]} 10. f3 {[%clk 0:01:47]}  Nxd4 {[%clk 0:02:56]} 11. Bxd4 {[%clk 0:01:46]}  Be6 {[%clk 0:02:57]} 12. Qd2 {[%clk 0:01:39]}  c6 {[%clk 0:02:56]} 13. Rad1 {[%clk 0:01:31]}  Qc7 {[%clk 0:02:48]} 14. Qe3 {[%clk 0:01:11]}  c5 {[%clk 0:02:46]} 15. Bxf6 {[%clk 0:01:09]}  Bxf6 {[%clk 0:02:47]} 16. Nb5 {[%clk 0:01:09]}  Qa5 {[%clk 0:02:41]} 17. Nxd6 {[%clk 0:01:05]}  Bd4 {[%clk 0:02:37]} 18. Rxd4 {[%clk 0:01:03]}  cxd4 {[%clk 0:02:38]} 19. Qxd4 {[%clk 0:01:04]}  Red8 {[%clk 0:02:39]} 20. e5 {[%clk 0:00:48]}  b6 {[%clk 0:02:28]} 21. f4 {[%clk 0:00:45]}  Qc5 {[%clk 0:02:27]} 22. Qxc5 {[%clk 0:00:43]}  bxc5 {[%clk 0:02:28]} 23. g4 {[%clk 0:00:41]}  Rab8 {[%clk 0:02:25]} 24. b3 {[%clk 0:00:39]}  Bd7 {[%clk 0:02:22]} 25. Bf3 {[%clk 0:00:35]}  Rb6 {[%clk 0:02:08]} 26. f5 {[%clk 0:00:28]}  Bc6 {[%clk 0:02:06]} 27. fxg6 {[%clk 0:00:22]}  hxg6 {[%clk 0:02:06]} 28. Nxf7 {[%clk 0:00:19]}  Kxf7 {[%clk 0:02:02]} 29. Bxc6+ {[%clk 0:00:20]}  Ke6 {[%clk 0:02:02]} 30. Rf6+ {[%clk 0:00:11]}  Kxe5 {[%clk 0:02:03]} 31. Rxg6 {[%clk 0:00:12]}  Rc8 {[%clk 0:01:57]} 32. Rg5+ {[%clk 0:00:12]}  Kd4 {[%clk 0:01:30]} 33. Rd5+ {[%clk 0:00:09]}  Kc3 {[%clk 0:01:30]} 34. Bd7 {[%clk 0:00:07]}  Rc7 {[%clk 0:01:27]} 35. Bf5 {[%clk 0:00:07]}  a5 {[%clk 0:01:24]} 36. Rd3+ {[%clk 0:00:06]}  Kb2 {[%clk 0:01:25]} 37. Rd2+ {[%clk 0:00:07]}  Kc3 {[%clk 0:01:23]} 38. Rg2 {[%clk 0:00:05]}  a4 {[%clk 0:01:21]} 39. Rg3+ {[%clk 0:00:05]}  Kb4 {[%clk 0:01:19]} 40. g5 {[%clk 0:00:05]}  Ka3 {[%clk 0:01:19]} 41. g6 {[%clk 0:00:03]}  axb3 {[%clk 0:00:39]} 42. axb3 {[%clk 0:00:03]}  Rxb3 {[%clk 0:00:39]} 43. Rxb3+ {[%clk 0:00:03]}  Kxb3 {[%clk 0:00:40]} 44. Be6 {[%clk 0:00:03]}  Rg7 {[%clk 0:00:29]} 45. Bf7 {[%clk 0:00:03]}  Kc3 {[%clk 0:00:29]} 46. h4 {[%clk 0:00:02]}  Kd4 {[%clk 0:00:29]} 47. h5 {[%clk 0:00:02]}  Ke5 {[%clk 0:00:30]} 48. h6 {[%clk 0:00:02]} 1-0


[Site "https://www.chess.com"]